[Event "*** Titled Tuesday Blitz"]
[Site "Chess.com"]
[Date "2020.05.26"]
[Round "7"]
[White "DucksParadise"]
[Black "mohamed-damaj"]
[Result "0-1"]
[WhiteElo "2049"]
[BlackElo "2287"]
[TimeControl "180+1"]
[EndTime "11:20:44 PDT"]
[Termination "mohamed-damaj won on time"]

1. e4 {[%clk 0:01:35]} 1... e5 {[%clk 0:02:51.8]} 2. Nf3 {[%clk 0:01:33.9]} 2...
Nc6 {[%clk 0:02:51.9]} 3. Bb5 {[%clk 0:01:33.2]} 3... a6 {[%clk 0:02:52.1]} 4.
Ba4 {[%clk 0:01:32.6]} 4... Nf6 {[%clk 0:02:52.6]} 5. O-O {[%clk 0:01:32.4]}
5... b5 {[%clk 0:02:52.9]} 6. Bb3 {[%clk 0:01:31.9]} 6... Be7 {[%clk 0:02:53.5]}
7. Re1 {[%clk 0:01:31.8]} 7... O-O {[%clk 0:02:51.4]} 8. d3 {[%clk 0:01:28.4]}
8... d5 {[%clk 0:02:49.8]} 9. exd5 {[%clk 0:01:27.8]} 9... Nxd5 {[%clk
0:02:49.9]} 10. Nxe5 {[%clk 0:01:28]} 10... Nxe5 {[%clk 0:02:50.3]} 11. Rxe5
{[%clk 0:01:28.8]} 11... c6 {[%clk 0:02:50.6]} 12. Re1 {[%clk 0:01:24.3]} 12...
Bd6 {[%clk 0:02:44.5]} 13. Nd2 {[%clk 0:01:08.7]} 13... Qh4 {[%clk 0:02:02.2]}
14. g3 {[%clk 0:00:53.1]} 14... Qh3 {[%clk 0:01:55.1]} 15. Qf3 {[%clk
0:00:46.6]} 15... Bg4 {[%clk 0:01:47.3]} 16. Qg2 {[%clk 0:00:44.9]} 16... Rfe8
{[%clk 0:01:44.8]} 17. Ne4 {[%clk 0:00:43.1]} 17... f5 {[%clk 0:01:23.8]} 18.
Bd2 {[%clk 0:00:33.5]} 18... fxe4 {[%clk 0:01:17]} 19. Qxh3 {[%clk 0:00:31.7]}
19... Bxh3 {[%clk 0:01:12.5]} 20. dxe4 {[%clk 0:00:32.6]} 20... Rf8 {[%clk
0:00:40.6]} 21. exd5 {[%clk 0:00:29.3]} 21... c5 {[%clk 0:00:40.7]} 22. c4
{[%clk 0:00:28.5]} 22... Rf7 {[%clk 0:00:28.9]} 23. a4 {[%clk 0:00:21.3]} 23...
Raf8 {[%clk 0:00:25]} 24. f4 {[%clk 0:00:18.5]} 24... g5 {[%clk 0:00:20]} 25.
cxb5 {[%clk 0:00:01.5]} 25... axb5 {[%clk 0:00:20]} 0-1

[Event "*** Titled Tuesday Blitz"]
[Site "Chess.com"]
[Date "2020.05.26"]
[Round "7"]
[White "Piotrek1979"]
[Black "silverback96"]
[Result "0-1"]
[WhiteElo "2403"]
[BlackElo "2319"]
[TimeControl "180+1"]
[EndTime "11:20:48 PDT"]
[Termination "silverback96 won on time"]

1. Nf3 {[%clk 0:03:00.9]} 1... d5 {[%clk 0:02:59.2]} 2. b3 {[%clk 0:03:00.4]}
2... Nf6 {[%clk 0:02:56.6]} 3. Bb2 {[%clk 0:03:01.3]} 3... g6 {[%clk 0:02:57.5]}
4. c4 {[%clk 0:02:59.5]} 4... Bg7 {[%clk 0:02:56.9]} 5. g3 {[%clk 0:02:57.2]}
5... O-O {[%clk 0:02:56.2]} 6. Bg2 {[%clk 0:02:57.3]} 6... c5 {[%clk 0:02:55.2]}
7. cxd5 {[%clk 0:02:56.7]} 7... Qxd5 {[%clk 0:02:54]} 8. O-O {[%clk 0:02:54.6]}
8... Qh5 {[%clk 0:02:53.7]} 9. Qc2 {[%clk 0:02:44.1]} 9... Nc6 {[%clk
0:02:42.7]} 10. Rc1 {[%clk 0:02:42.7]} 10... Nd4 {[%clk 0:02:41.6]} 11. Bxd4
{[%clk 0:02:06.5]} 11... cxd4 {[%clk 0:02:42.5]} 12. d3 {[%clk 0:02:00.1]} 12...
Nd5 {[%clk 0:02:30.3]} 13. Qc5 {[%clk 0:01:33.9]} 13... Be6 {[%clk 0:02:29.6]}
14. Nbd2 {[%clk 0:01:21.7]} 14... Rfc8 {[%clk 0:02:17.2]} 15. Qa5 {[%clk
0:01:11.5]} 15... b6 {[%clk 0:01:47.9]} 16. Qb5 {[%clk 0:01:05.4]} 16... a6
{[%clk 0:01:42.6]} 17. Rxc8+ {[%clk 0:01:03.3]} 17... Rxc8 {[%clk 0:01:34.9]}
18. Qxa6 {[%clk 0:01:03.2]} 18... Bh3 {[%clk 0:01:09.7]} 19. Bxh3 {[%clk
0:00:52.8]} 19... Qxh3 {[%clk 0:01:09]} 20. Nc4 {[%clk 0:00:48.7]} 20... Bh6
{[%clk 0:00:55.3]} 21. Nxb6 {[%clk 0:00:37.2]} 21... Ne3 {[%clk 0:00:27.4]} 22.
fxe3 {[%clk 0:00:35.7]} 22... Bxe3+ {[%clk 0:00:28.3]} 23. Kh1 {[%clk 0:00:36]}
23... Rc2 {[%clk 0:00:28.4]} 24. Rd1 {[%clk 0:00:12.2]} 24... Kg7 {[%clk
0:00:28.3]} 25. Re1 {[%clk 0:00:10.8]} 25... Rxe2 {[%clk 0:00:24.8]} 26. Rg1
{[%clk 0:00:06.8]} 26... Bxg1 {[%clk 0:00:20.6]} 0-1

[Event "*** Titled Tuesday Blitz"]
[Site "Chess.com"]
[Date "2020.05.26"]
[Round "7"]
[White "kleinebeer98"]
[Black "Sychev_Klementy"]
[Result "0-1"]
[WhiteElo "2671"]
[BlackElo "2864"]
[TimeControl "180+1"]
[EndTime "11:20:49 PDT"]
[Termination "Sychev_Klementy won by resignation"]

1. e4 {[%clk 0:02:59.5]} 1... e5 {[%clk 0:02:59.7]} 2. Nf3 {[%clk 0:02:58.8]}
2... Nc6 {[%clk 0:02:59.9]} 3. Nc3 {[%clk 0:02:59.4]} 3... Nf6 {[%clk
0:02:59.2]} 4. a3 {[%clk 0:03:00]} 4... d5 {[%clk 0:02:57.9]} 5. exd5 {[%clk
0:03:00.9]} 5... Nxd5 {[%clk 0:02:57.7]} 6. Nxe5 {[%clk 0:03:01.5]} 6... Nxe5
{[%clk 0:02:25]} 7. Qe2 {[%clk 0:03:01.6]} 7... Bd6 {[%clk 0:02:23.9]} 8. d4
{[%clk 0:03:01.7]} 8... Nxc3 {[%clk 0:02:20.4]} 9. bxc3 {[%clk 0:03:02.6]} 9...
O-O {[%clk 0:02:20.7]} 10. dxe5 {[%clk 0:02:54.8]} 10... Bxe5 {[%clk 0:02:19.3]}
11. Bd2 {[%clk 0:02:41.8]} 11... Re8 {[%clk 0:01:37.8]} 12. O-O-O {[%clk
0:02:38.4]} 12... Bd6 {[%clk 0:01:29.5]} 13. Qd3 {[%clk 0:02:32.7]} 13... Bxa3+
{[%clk 0:01:28.1]} 14. Kb1 {[%clk 0:02:32.8]} 14... Qf6 {[%clk 0:01:24.9]} 15.
Qb5 {[%clk 0:02:27.5]} 15... Bg4 {[%clk 0:01:10.5]} 16. Re1 {[%clk 0:02:18]}
16... Rxe1+ {[%clk 0:00:59.6]} 17. Bxe1 {[%clk 0:02:18.9]} 17... Qf4 {[%clk
0:00:51.8]} 18. Bd3 {[%clk 0:02:06.9]} 18... Be6 {[%clk 0:00:44]} 19. c4 {[%clk
0:02:05]} 19... Qc1+ {[%clk 0:00:40.1]} 20. Ka2 {[%clk 0:02:04.9]} 20... Be7
{[%clk 0:00:35.6]} 21. Qxb7 {[%clk 0:01:56.7]} 21... Rd8 {[%clk 0:00:30]} 22.
Qxc7 {[%clk 0:01:32.5]} 22... Re8 {[%clk 0:00:20.6]} 23. Qa5 {[%clk 0:01:21.7]}
23... Bf6 {[%clk 0:00:16.6]} 24. Qb4 {[%clk 0:00:07.7]} 24... Qa1+ {[%clk
0:00:12.5]} 25. Kb3 {[%clk 0:00:08]} 25... Qb2+ {[%clk 0:00:11.8]} 26. Ka4
{[%clk 0:00:08.3]} 26... Bd7+ {[%clk 0:00:12.1]} 27. Ka5 {[%clk 0:00:07.4]}
27... Qa2+ {[%clk 0:00:12.3]} 0-1

[Event "*** Titled Tuesday Blitz"]
[Site "Chess.com"]
[Date "2020.05.26"]
[Round "7"]
[White "Stronger1799"]
[Black "SCIM"]
[Result "0-1"]
[WhiteElo "2365"]
[BlackElo "2522"]
[TimeControl "180+1"]
[EndTime "11:20:49 PDT"]
[Termination "SCIM won by checkmate"]

1. e4 {[%clk 0:03:00.9]} 1... c5 {[%clk 0:02:58.8]} 2. Nf3 {[%clk 0:03:00.8]}
2... e6 {[%clk 0:02:58.7]} 3. d4 {[%clk 0:03:01.3]} 3... cxd4 {[%clk 0:02:59.3]}
4. Nxd4 {[%clk 0:03:02]} 4... Nc6 {[%clk 0:02:59.7]} 5. Be2 {[%clk 0:02:59]}
5... Nf6 {[%clk 0:02:57.9]} 6. Bf3 {[%clk 0:02:50.1]} 6... Bc5 {[%clk
0:02:41.1]} 7. Nxc6 {[%clk 0:02:26.3]} 7... bxc6 {[%clk 0:02:39.8]} 8. e5 {[%clk
0:02:23]} 8... Nd5 {[%clk 0:02:39]} 9. O-O {[%clk 0:02:19.1]} 9... O-O {[%clk
0:02:35.4]} 10. Nd2 {[%clk 0:02:16.2]} 10... Ba6 {[%clk 0:02:31.5]} 11. Re1
{[%clk 0:02:11.7]} 11... f5 {[%clk 0:02:29.4]} 12. c4 {[%clk 0:01:54.8]} 12...
Nb6 {[%clk 0:02:09.4]} 13. b3 {[%clk 0:01:43.7]} 13... Qh4 {[%clk 0:02:06.5]}
14. Qe2 {[%clk 0:01:21]} 14... Nd5 {[%clk 0:02:01.2]} 15. Bxd5 {[%clk 0:00:58]}
15... cxd5 {[%clk 0:01:57.8]} 16. Nf3 {[%clk 0:00:58.5]} 16... Qe7 {[%clk
0:01:52.9]} 17. Bg5 {[%clk 0:00:55.5]} 17... Qf7 {[%clk 0:01:49.4]} 18. Qd2
{[%clk 0:00:32.5]} 18... dxc4 {[%clk 0:01:47.3]} 19. Qa5 {[%clk 0:00:32.1]}
19... Bb7 {[%clk 0:01:37.2]} 20. Qxc5 {[%clk 0:00:29.9]} 20... Bxf3 {[%clk
0:01:37.1]} 21. gxf3 {[%clk 0:00:05.3]} 21... Qg6 {[%clk 0:01:36.1]} 22. f4
{[%clk 0:00:04.6]} 22... h6 {[%clk 0:01:35.7]} 23. h4 {[%clk 0:00:04.4]} 23...
hxg5 {[%clk 0:01:35.2]} 24. hxg5 {[%clk 0:00:02]} 24... Rac8 {[%clk 0:01:30.6]}
25. Qe3 {[%clk 0:00:01.6]} 25... c3 {[%clk 0:01:26.8]} 26. Rac1 {[%clk
0:00:01.4]} 26... Qh5 {[%clk 0:01:23.3]} 27. Rxc3 {[%clk 0:00:01.4]} 27... Qg4+
{[%clk 0:01:23.1]} 28. Kf1 {[%clk 0:00:01.9]} 28... Rxc3 {[%clk 0:01:16.9]} 29.
Qxc3 {[%clk 0:00:02.2]} 29... Qxf4 {[%clk 0:01:17.6]} 30. Qd3 {[%clk 0:00:01.7]}
30... Rd8 {[%clk 0:01:02.4]} 31. Qe3 {[%clk 0:00:02.1]} 31... Qh4 {[%clk
0:00:59.4]} 32. Qxa7 {[%clk 0:00:01.9]} 32... Kh7 {[%clk 0:00:54.4]} 33. Rd1
{[%clk 0:00:02]} 33... Rc8 {[%clk 0:00:45.1]} 34. Qxd7 {[%clk 0:00:01.3]} 34...
Rc2 {[%clk 0:00:40]} 35. Qd4 {[%clk 0:00:01.6]} 35... Qh1# {[%clk 0:00:35.1]}
0-1

[Event "*** Titled Tuesday Blitz"]
[Site "Chess.com"]
[Date "2020.05.26"]
[Round "7"]
[White "Shockerlover"]
[Black "talaicito"]
[Result "0-1"]
[WhiteElo "1760"]
[BlackElo "2149"]
[TimeControl "180+1"]
[EndTime "11:20:49 PDT"]
[Termination "talaicito won by checkmate"]

1. d4 {[%clk 0:03:00.9]} 1... e6 {[%clk 0:02:59.6]} 2. Nf3 {[%clk 0:03:01.8]}
2... f5 {[%clk 0:02:59.5]} 3. c4 {[%clk 0:03:02.7]} 3... Nf6 {[%clk 0:02:59.7]}
4. Nc3 {[%clk 0:03:02.3]} 4... Bb4 {[%clk 0:02:59.3]} 5. Bd2 {[%clk 0:02:51]}
5... O-O {[%clk 0:02:58.3]} 6. e3 {[%clk 0:02:50.1]} 6... d6 {[%clk 0:02:57.6]}
7. Bd3 {[%clk 0:02:49.7]} 7... Nc6 {[%clk 0:02:28.7]} 8. O-O {[%clk 0:02:48.6]}
8... e5 {[%clk 0:02:27.5]} 9. d5 {[%clk 0:02:35.8]} 9... Ne7 {[%clk 0:02:04.6]}
10. e4 {[%clk 0:02:25.9]} 10... Bxc3 {[%clk 0:01:53.8]} 11. Bxc3 {[%clk
0:02:18.6]} 11... fxe4 {[%clk 0:01:53.8]} 12. Bc2 {[%clk 0:01:49.7]} 12... exf3
{[%clk 0:01:50.4]} 13. gxf3 {[%clk 0:01:50.6]} 13... Bh3 {[%clk 0:01:39.6]} 14.
Kh1 {[%clk 0:01:37.8]} 14... Bxf1 {[%clk 0:01:38]} 15. Qxf1 {[%clk 0:01:37.2]}
15... Qe8 {[%clk 0:01:17.7]} 16. Qh3 {[%clk 0:01:32.6]} 16... Qh5 {[%clk
0:01:13.1]} 17. Qe6+ {[%clk 0:01:27.4]} 17... Rf7 {[%clk 0:01:13.2]} 18. Rg1
{[%clk 0:00:57.7]} 18... Qxf3+ {[%clk 0:01:09.5]} 19. Rg2 {[%clk 0:00:57.4]}
19... Rf8 {[%clk 0:01:08.3]} 20. Bd2 {[%clk 0:00:47.5]} 20... Kh8 {[%clk
0:01:03.6]} 21. Be3 {[%clk 0:00:40.1]} 21... Ng6 {[%clk 0:00:55]} 22. Bxg6
{[%clk 0:00:11.8]} 22... hxg6 {[%clk 0:00:55.9]} 23. h4 {[%clk 0:00:11.1]} 23...
Kh7 {[%clk 0:00:53.4]} 24. Kh2 {[%clk 0:00:07.8]} 24... Qf5 {[%clk 0:00:53]} 25.
Rg3 {[%clk 0:00:08.7]} 25... Qxe6 {[%clk 0:00:52.9]} 26. dxe6 {[%clk 0:00:08.9]}
26... Re7 {[%clk 0:00:53.1]} 27. Bg5 {[%clk 0:00:07.6]} 27... Rxe6 {[%clk
0:00:52.9]} 28. Bxf6 {[%clk 0:00:07.7]} 28... gxf6 {[%clk 0:00:52.5]} 29. Kg2
{[%clk 0:00:08.6]} 29... f5 {[%clk 0:00:52.6]} 30. h5 {[%clk 0:00:08.7]} 30...
gxh5 {[%clk 0:00:52.4]} 31. Rg5 {[%clk 0:00:08.3]} 31... Rg6 {[%clk 0:00:52.5]}
32. Rxg6 {[%clk 0:00:07.5]} 32... Kxg6 {[%clk 0:00:53.4]} 33. Kh3 {[%clk
0:00:08]} 33... Kg5 {[%clk 0:00:53.6]} 34. f3 {[%clk 0:00:06.8]} 34... Kf4
{[%clk 0:00:53.7]} 35. b4 {[%clk 0:00:07.7]} 35... Kxf3 {[%clk 0:00:53.6]} 36.
c5 {[%clk 0:00:08.6]} 36... dxc5 {[%clk 0:00:53.4]} 37. bxc5 {[%clk 0:00:08.4]}
37... b6 {[%clk 0:00:53.7]} 38. a4 {[%clk 0:00:09.3]} 38... bxc5 {[%clk
0:00:53.7]} 39. a5 {[%clk 0:00:09.5]} 39... Rf6 {[%clk 0:00:53.3]} 40. a6 {[%clk
0:00:10.4]} 40... Rxa6 {[%clk 0:00:53.2]} 41. Kh4 {[%clk 0:00:10.8]} 41... Kf4
{[%clk 0:00:52.3]} 42. Kxh5 {[%clk 0:00:10.2]} 42... c4 {[%clk 0:00:51.6]} 43.
Kh4 {[%clk 0:00:07.9]} 43... Rh6# {[%clk 0:00:51.5]} 0-1

[Event "*** Titled Tuesday Blitz"]
[Site "Chess.com"]
[Date "2020.05.26"]
[Round "7"]
[White "DaggiGretarsson"]
[Black "Savva09022009"]
[Result "1-0"]
[WhiteElo "2610"]
[BlackElo "2404"]
[TimeControl "180+1"]
[EndTime "11:20:53 PDT"]
[Termination "DaggiGretarsson won by resignation"]

1. d4 {[%clk 0:03:00.9]} 1... Nf6 {[%clk 0:02:59.5]} 2. c4 {[%clk 0:03:00.4]}
2... e6 {[%clk 0:02:53.3]} 3. Nc3 {[%clk 0:02:58.7]} 3... Bb4 {[%clk 0:02:53.2]}
4. Qc2 {[%clk 0:02:58.3]} 4... d5 {[%clk 0:02:52.7]} 5. cxd5 {[%clk 0:02:56]}
5... exd5 {[%clk 0:02:52.6]} 6. Bg5 {[%clk 0:02:55.3]} 6... O-O {[%clk
0:02:51.8]} 7. e3 {[%clk 0:02:53.9]} 7... h6 {[%clk 0:02:51.7]} 8. Bh4 {[%clk
0:02:53.5]} 8... c6 {[%clk 0:02:50.8]} 9. Bd3 {[%clk 0:02:52.2]} 9... Nbd7
{[%clk 0:02:50.1]} 10. Nf3 {[%clk 0:02:44]} 10... Re8 {[%clk 0:02:47]} 11. O-O
{[%clk 0:02:43.2]} 11... Nf8 {[%clk 0:02:44.9]} 12. Ne5 {[%clk 0:02:34.1]} 12...
Bd6 {[%clk 0:02:40.3]} 13. f4 {[%clk 0:02:33.5]} 13... c5 {[%clk 0:02:36.1]} 14.
Nb5 {[%clk 0:02:30.8]} 14... c4 {[%clk 0:02:33.7]} 15. Nxd6 {[%clk 0:02:22.3]}
15... Qxd6 {[%clk 0:02:34.6]} 16. Be2 {[%clk 0:02:18.8]} 16... Ne4 {[%clk
0:02:31.9]} 17. b3 {[%clk 0:02:12.5]} 17... cxb3 {[%clk 0:02:29]} 18. axb3
{[%clk 0:01:53.7]} 18... Bf5 {[%clk 0:02:27.1]} 19. g4 {[%clk 0:01:50.5]} 19...
Ng3 {[%clk 0:02:23]} 20. gxf5 {[%clk 0:01:48.8]} 20... Rac8 {[%clk 0:02:17.3]}
21. Qd2 {[%clk 0:01:39]} 21... Nxf1 {[%clk 0:02:14.8]} 22. Bxf1 {[%clk
0:01:37.3]} 22... f6 {[%clk 0:02:15.1]} 23. Nd3 {[%clk 0:01:30.7]} 23... Qb6
{[%clk 0:02:11.5]} 24. Nc5 {[%clk 0:01:29.3]} 24... a6 {[%clk 0:01:59.8]} 25.
Bf2 {[%clk 0:01:26.8]} 25... Qc6 {[%clk 0:01:58.2]} 26. Bg2 {[%clk 0:01:21.4]}
26... Qb5 {[%clk 0:01:38.9]} 27. Bxd5+ {[%clk 0:01:19.6]} 27... Kh8 {[%clk
0:01:35.5]} 28. Bc4 {[%clk 0:01:04.9]} 28... Qc6 {[%clk 0:01:33.1]} 29. e4
{[%clk 0:01:04.6]} 29... b6 {[%clk 0:01:31.1]} 30. d5 {[%clk 0:01:04.5]} 30...
Qd6 {[%clk 0:01:28.4]} 31. Ne6 {[%clk 0:01:04.2]} 31... Nxe6 {[%clk 0:01:25.8]}
32. fxe6 {[%clk 0:01:02.7]} 32... Rxe6 {[%clk 0:01:25.4]} 33. Qe3 {[%clk
0:00:32.5]} 33... Ree8 {[%clk 0:01:20.1]} 34. Rxa6 {[%clk 0:00:31.7]} 34... Rb8
{[%clk 0:01:18.4]} 35. Rxb6 {[%clk 0:00:29.5]} 35... Rxb6 {[%clk 0:01:15.7]} 36.
Qxb6 {[%clk 0:00:29.1]} 36... Qxf4 {[%clk 0:01:15.9]} 37. Qe3 {[%clk 0:00:18.5]}
37... Qg4+ {[%clk 0:01:14.2]} 38. Qg3 {[%clk 0:00:16.9]} 38... Qd1+ {[%clk
0:01:13.8]} 39. Kg2 {[%clk 0:00:17.2]} 39... Rxe4 {[%clk 0:01:12.8]} 40. h3
{[%clk 0:00:16.9]} 40... h5 {[%clk 0:01:09.7]} 41. Qf3 {[%clk 0:00:16.1]} 41...
Qxf3+ {[%clk 0:00:58.4]} 42. Kxf3 {[%clk 0:00:15.8]} 42... Re8 {[%clk
0:00:59.1]} 43. d6 {[%clk 0:00:15]} 43... g5 {[%clk 0:00:56.1]} 44. d7 {[%clk
0:00:13.6]} 44... Rd8 {[%clk 0:00:56.1]} 45. Be6 {[%clk 0:00:13.6]} 45... g4+
{[%clk 0:00:53.9]} 46. hxg4 {[%clk 0:00:13.3]} 46... hxg4+ {[%clk 0:00:54.8]}
47. Kxg4 {[%clk 0:00:13.6]} 1-0

[Event "*** Titled Tuesday Blitz"]
[Site "Chess.com"]
[Date "2020.05.26"]
[Round "7"]
[White "m-garcett"]
[Black "VladimirBugayev"]
[Result "1-0"]
[WhiteElo "1984"]
[BlackElo "2181"]
[TimeControl "180+1"]
[EndTime "11:20:53 PDT"]
[Termination "m-garcett won on time"]

1. e4 {[%clk 0:03:00.9]} 1... c6 {[%clk 0:02:59.7]} 2. c4 {[%clk 0:03:00.2]}
2... d5 {[%clk 0:02:59.8]} 3. cxd5 {[%clk 0:03:01.1]} 3... cxd5 {[%clk
0:02:58.8]} 4. exd5 {[%clk 0:03:02]} 4... Nf6 {[%clk 0:02:56.5]} 5. Nc3 {[%clk
0:03:02.9]} 5... g6 {[%clk 0:02:56.8]} 6. Nf3 {[%clk 0:03:00.6]} 6... Bg7 {[%clk
0:02:56.9]} 7. Bc4 {[%clk 0:02:58.8]} 7... O-O {[%clk 0:02:56.9]} 8. O-O {[%clk
0:02:56.4]} 8... Nbd7 {[%clk 0:02:54.4]} 9. d6 {[%clk 0:02:48.4]} 9... e6 {[%clk
0:02:44.1]} 10. d3 {[%clk 0:02:33]} 10... Nb6 {[%clk 0:02:40.6]} 11. Bf4 {[%clk
0:02:31.4]} 11... Nh5 {[%clk 0:02:37.1]} 12. Qd2 {[%clk 0:02:21.6]} 12... Nxf4
{[%clk 0:02:29.8]} 13. Qxf4 {[%clk 0:02:22.5]} 13... e5 {[%clk 0:02:08.5]} 14.
Nxe5 {[%clk 0:02:04.7]} 14... Qxd6 {[%clk 0:02:06.5]} 15. Bxf7+ {[%clk
0:01:29.3]} 15... Kh8 {[%clk 0:02:04.3]} 16. d4 {[%clk 0:01:29.1]} 16... Bf5
{[%clk 0:02:00.7]} 17. Bb3 {[%clk 0:01:20.4]} 17... Be6 {[%clk 0:01:56.6]} 18.
Qe3 {[%clk 0:01:12.5]} 18... Bxb3 {[%clk 0:01:54.3]} 19. axb3 {[%clk 0:01:13.4]}
19... a6 {[%clk 0:01:37.8]} 20. Ne4 {[%clk 0:01:05]} 20... Qb4 {[%clk
0:01:24.3]} 21. Ng5 {[%clk 0:00:59.8]} 21... Rae8 {[%clk 0:00:48.7]} 22. Nxg6+
{[%clk 0:00:32.1]} 22... Kg8 {[%clk 0:00:40.8]} 23. Qh3 {[%clk 0:00:32.1]} 23...
h6 {[%clk 0:00:34]} 24. Nxf8 {[%clk 0:00:31.9]} 24... Qxf8 {[%clk 0:00:27.8]}
25. Ne6 {[%clk 0:00:28.8]} 25... Qf6 {[%clk 0:00:20.4]} 26. Nxg7 {[%clk
0:00:28.4]} 26... Qxg7 {[%clk 0:00:20.9]} 27. Rfe1 {[%clk 0:00:25.7]} 27...
Rxe1+ {[%clk 0:00:15.7]} 28. Rxe1 {[%clk 0:00:26.6]} 28... Nd7 {[%clk
0:00:15.5]} 29. Qe6+ {[%clk 0:00:24.1]} 29... Kh8 {[%clk 0:00:11.2]} 30. Qe8+
{[%clk 0:00:20.6]} 30... Nf8 {[%clk 0:00:11]} 31. d5 {[%clk 0:00:20.5]} 31...
Kg8 {[%clk 0:00:03]} 32. d6 {[%clk 0:00:19.3]} 1-0

[Event "*** Titled Tuesday Blitz"]
[Site "Chess.com"]
[Date "2020.05.26"]
[Round "7"]
[White "XxPetroffsxX"]
[Black "tan275"]
[Result "1-0"]
[WhiteElo "1935"]
[BlackElo "2167"]
[TimeControl "180+1"]
[EndTime "11:20:57 PDT"]
[Termination "XxPetroffsxX won by resignation"]

1. e4 {[%clk 0:03:00.9]} 1... c5 {[%clk 0:02:59.1]} 2. Nf3 {[%clk 0:03:00.6]}
2... Nc6 {[%clk 0:02:56.1]} 3. Na3 {[%clk 0:02:59.4]} 3... g6 {[%clk 0:02:55]}
4. c3 {[%clk 0:02:58.9]} 4... d5 {[%clk 0:02:47.2]} 5. exd5 {[%clk 0:02:57.2]}
5... Qxd5 {[%clk 0:02:47.2]} 6. Bc4 {[%clk 0:02:56.4]} 6... Qd8 {[%clk
0:02:44.6]} 7. O-O {[%clk 0:02:55.6]} 7... Bg7 {[%clk 0:02:39.3]} 8. d4 {[%clk
0:02:54.8]} 8... cxd4 {[%clk 0:02:36.8]} 9. Qb3 {[%clk 0:02:54]} 9... e6 {[%clk
0:02:33.1]} 10. Bg5 {[%clk 0:02:47.8]} 10... Nge7 {[%clk 0:02:31]} 11. cxd4
{[%clk 0:02:44.8]} 11... O-O {[%clk 0:02:21.6]} 12. Qe3 {[%clk 0:02:42.3]} 12...
Qb6 {[%clk 0:01:58.1]} 13. Bxe7 {[%clk 0:02:29.5]} 13... Nxe7 {[%clk 0:01:57.4]}
14. Rfd1 {[%clk 0:02:18.7]} 14... Bd7 {[%clk 0:01:51]} 15. Bb3 {[%clk 0:02:16]}
15... Nf5 {[%clk 0:01:47.6]} 16. Qf4 {[%clk 0:02:10.1]} 16... Rac8 {[%clk
0:01:23.5]} 17. Nc4 {[%clk 0:02:04.7]} 17... Qb4 {[%clk 0:01:22.5]} 18. Nce5
{[%clk 0:02:02.4]} 18... Bxe5 {[%clk 0:01:02.4]} 19. Nxe5 {[%clk 0:02:00.2]}
19... Ba4 {[%clk 0:01:02.3]} 20. Bxa4 {[%clk 0:01:46]} 20... Qxa4 {[%clk
0:01:02.2]} 21. b3 {[%clk 0:01:45.3]} 21... Qb4 {[%clk 0:00:59.5]} 22. Nd7
{[%clk 0:01:41.6]} 22... Rfd8 {[%clk 0:00:57.1]} 23. Nf6+ {[%clk 0:01:37.4]}
23... Kh8 {[%clk 0:00:31.2]} 24. Qe5 {[%clk 0:01:35.6]} 24... Qd6 {[%clk
0:00:29.4]} 25. Nd7+ {[%clk 0:01:20.1]} 25... Qxe5 {[%clk 0:00:28.3]} 26. Nxe5
{[%clk 0:01:19.1]} 26... Kg7 {[%clk 0:00:28.2]} 27. Nf3 {[%clk 0:01:13.4]} 27...
Rc2 {[%clk 0:00:24.8]} 28. g4 {[%clk 0:01:11.6]} 28... Nd6 {[%clk 0:00:22]} 29.
d5 {[%clk 0:01:10]} 29... Ne4 {[%clk 0:00:18.8]} 30. dxe6 {[%clk 0:01:09.3]}
30... Rxd1+ {[%clk 0:00:13.3]} 31. Rxd1 {[%clk 0:01:07.8]} 31... fxe6 {[%clk
0:00:11.9]} 32. g5 {[%clk 0:01:01.7]} 32... Rc7 {[%clk 0:00:09.1]} 33. Re1
{[%clk 0:00:59.3]} 33... Nc3 {[%clk 0:00:06.9]} 34. Rxe6 {[%clk 0:00:57.4]}
34... Nxa2 {[%clk 0:00:06.5]} 35. Ne5 {[%clk 0:00:54.3]} 35... Nb4 {[%clk
0:00:06.9]} 36. Nc4 {[%clk 0:00:52.6]} 36... b5 {[%clk 0:00:04.9]} 37. Nd6
{[%clk 0:00:51.7]} 37... a6 {[%clk 0:00:03.9]} 38. Ne8+ {[%clk 0:00:50.3]} 38...
Kf7 {[%clk 0:00:04.3]} 39. Nxc7 {[%clk 0:00:49.5]} 1-0

[Event "*** Titled Tuesday Blitz"]
[Site "Chess.com"]
[Date "2020.05.26"]
[Round "7"]
[White "SHIVACalypso"]
[Black "Bhagya_2312"]
[Result "1-0"]
[WhiteElo "2285"]
[BlackElo "2104"]
[TimeControl "180+1"]
[EndTime "11:20:59 PDT"]
[Termination "SHIVACalypso won on time"]

1. Nf3 {[%clk 0:03:00.9]} 1... d5 {[%clk 0:02:58.9]} 2. c4 {[%clk 0:03:01.1]}
2... e6 {[%clk 0:02:57.9]} 3. g3 {[%clk 0:02:59.8]} 3... c5 {[%clk 0:02:52.6]}
4. cxd5 {[%clk 0:02:58.8]} 4... exd5 {[%clk 0:02:52.1]} 5. Bg2 {[%clk
0:02:59.7]} 5... Nc6 {[%clk 0:02:49.3]} 6. O-O {[%clk 0:02:59.8]} 6... Nf6
{[%clk 0:02:49.4]} 7. d4 {[%clk 0:02:57.6]} 7... h6 {[%clk 0:02:46.4]} 8. a3
{[%clk 0:02:56.5]} 8... a6 {[%clk 0:02:36.6]} 9. dxc5 {[%clk 0:02:55.6]} 9...
Bxc5 {[%clk 0:02:35.7]} 10. b4 {[%clk 0:02:56.5]} 10... Ba7 {[%clk 0:02:34.6]}
11. Bb2 {[%clk 0:02:57]} 11... Be6 {[%clk 0:02:33.3]} 12. Nbd2 {[%clk
0:02:56.9]} 12... O-O {[%clk 0:02:27]} 13. Nb3 {[%clk 0:02:57.3]} 13... Ne4
{[%clk 0:02:24.1]} 14. Nfd4 {[%clk 0:02:55.7]} 14... Bd7 {[%clk 0:02:13.8]} 15.
Nxc6 {[%clk 0:02:50.6]} 15... bxc6 {[%clk 0:02:05.3]} 16. Qc2 {[%clk 0:02:37.8]}
16... Re8 {[%clk 0:02:03.1]} 17. Rad1 {[%clk 0:02:31.7]} 17... Qe7 {[%clk
0:01:54.8]} 18. e3 {[%clk 0:02:13.9]} 18... Rac8 {[%clk 0:01:46.5]} 19. Bd4
{[%clk 0:01:57.6]} 19... Bf5 {[%clk 0:01:40.2]} 20. Qb2 {[%clk 0:01:49.7]} 20...
f6 {[%clk 0:01:25.7]} 21. Bxa7 {[%clk 0:01:35.2]} 21... Qxa7 {[%clk 0:01:25.2]}
22. Qd4 {[%clk 0:01:35.4]} 22... Qb8 {[%clk 0:01:18]} 23. Rc1 {[%clk 0:01:25.2]}
23... Nd6 {[%clk 0:01:08.5]} 24. Na5 {[%clk 0:01:15.1]} 24... Qb5 {[%clk
0:00:52.1]} 25. Nxc6 {[%clk 0:01:07.7]} 25... Be4 {[%clk 0:00:44.2]} 26. Na5
{[%clk 0:00:57]} 26... Nf5 {[%clk 0:00:28.2]} 27. Qd2 {[%clk 0:00:52.9]} 27...
Bxg2 {[%clk 0:00:20.1]} 28. Kxg2 {[%clk 0:00:53.8]} 28... Rcd8 {[%clk
0:00:19.3]} 29. Nb3 {[%clk 0:00:50.9]} 29... Nd6 {[%clk 0:00:16.7]} 30. Rc5
{[%clk 0:00:48.1]} 30... Qa4 {[%clk 0:00:16]} 31. Qxd5+ {[%clk 0:00:44.8]} 31...
Nf7 {[%clk 0:00:16]} 32. Qc4 {[%clk 0:00:43.6]} 32... Qxa3 {[%clk 0:00:15.5]}
33. Rc7 {[%clk 0:00:37.3]} 33... Rf8 {[%clk 0:00:14.6]} 34. Nd4 {[%clk 0:00:37]}
34... Rd6 {[%clk 0:00:05.5]} 35. Ne6 {[%clk 0:00:35.3]} 35... Re8 {[%clk
0:00:01.3]} 36. Nd8 {[%clk 0:00:30.3]} 1-0